bitfinex/quotes_ETHUSD_20260114
["timestamp","ask_amount","ask_price","bid_price","bid_amount"]
[1768408464634,1e-08,3384.7,3383.6,0.59120389]
[1768408464938,1e-08,3384.7,3383.5,0.001]
[1768408465290,7.78805925,3383.6,3380.8,0.09032472]
[1768408465519,0.377,3383.5,3382.0,2.95680398]
[1768408465721,0.377,3383.5,3381.5,2.95725923]
[1768408465939,0.377,3383.5,3381.6,0.3047584]
[1768408465940,0.93597399,3383.4,3381.6,0.3047584]
[1768408466105,0.377,3383.3,3382.0,2.95683027]
[1768408466423,0.377,3383.3,3381.6,0.3047584]
[1768408466424,0.377,3383.2,3381.9,2.9569004]
[1768408466585,0.377,3383.1,3381.9,2.9569004]
[1768408466786,0.377,3383.1,3381.9,0.02956917]
[1768408466996,0.377,3383.1,3381.1,0.38]
[1768408467242,0.377,3383.1,3380.4,0.47032472]
[1768408467433,0.09032472,3382.8,3380.5,0.15602134]
[1768408468123,1.02629871,3382.8,3380.2,0.09032472]
[1768408468325,8.8686552,3382.7,3379.9,0.47032472]
[1768408468527,0.09032472,3382.6,3380.0,8.87573964]
[1768408468736,1.02629871,3382.6,3380.0,8.87573964]
[1768408468894,1.02629871,3382.6,3380.0,5.91715976]
[1768408469094,1.02629871,3382.6,3380.1,0.59171598]
[1768408469295,0.377,3382.5,3380.3,0.09032472]
[1768408469730,0.377,3382.4,3380.3,0.09032472]
[1768408470201,0.377,3382.4,3380.4,0.02958229]
[1768408470523,2.95656801,3382.3,3380.5,5.91628456]
[1768408470723,2.95656801,3382.3,3380.6,0.89041434]
[1768408470910,5.91313602,3382.3,3380.6,0.89041434]
[1768408471132,0.377,3382.2,3380.6,0.89041434]
[1768408471745,3.89227979,3382.6,3380.6,0.89041434]
[1768408472045,0.377,3382.5,3380.7,0.02957967]
[1768408472362,0.377,3382.5,3380.9,8.8733769]
[1768408472648,0.377,3382.5,3380.9,5.9155846]
[1768408472956,0.377,3382.5,3380.8,1.28428879]
[1768408472957,6.28981518,3382.5,3380.8,1.28428879]
[1768408473108,0.377,3382.4,3380.8,2.95787957]
[1768408473315,0.377,3382.4,3380.8,2.9578738]
[1768408473515,0.377,3382.4,3380.1,0.38]
[1768408473813,0.377,3382.4,3380.0,3.95808552]
[1768408474139,1.39675931,3382.4,3380.5,2.95812262]
[1768408474306,1.39675931,3382.4,3380.1,3.38384121]
[1768408474513,2.95656801,3382.3,3380.2,8.87515009]
[1768408474713,1.01975931,3382.4,3380.2,8.87515009]
[1768408474912,0.377,3382.3,3380.3,0.09032472]
[1768408475111,0.377,3382.3,3380.4,1.32516081]
[1768408475522,1.01975931,3382.4,3380.6,0.09032472]
[1768408475739,6.93280398,3382.4,3380.5,0.38]
[1768408476244,6.93280398,3382.4,3380.4,0.94516081]
[1768408476540,6.93280398,3382.4,3380.5,5.91628456]
[1768408476706,6.93280398,3382.4,3380.6,0.68614454]
[1768408477444,9.88936805,3382.4,3380.6,0.68614454]
[1768408477620,1.02629871,3382.1,3380.5,0.001]
[1768408478117,0.377,3382.0,3379.7,2.95879405]
[1768408478307,0.46732472,3382.0,3380.2,2.95839222]
[1768408478511,0.46732472,3382.0,3380.3,0.29583922]
[1768408478512,8.8707531,3381.9,3380.3,0.29583922]
[1768408478715,0.09032472,3381.8,3380.3,0.29583922]
[1768408478938,1.02629871,3381.8,3379.7,2.9587973]
[1768408479151,0.49368848,3382.7,3380.4,0.99956399]
[1768408479355,0.49368848,3382.7,3380.3,8.8749519]
[1768408479356,0.377,3382.8,3380.7,0.99956399]
[1768408479566,0.377,3382.8,3380.3,8.8749519]
[1768408479848,0.09032472,3382.5,3380.4,0.88749519]
[1768408480048,1.01975931,3381.7,3380.4,0.88749519]
[1768408480248,0.377,3381.6,3380.4,0.88749519]
[1768408480559,0.35985596,3381.6,3380.5,5.91628456]
[1768408480718,3.97686527,3381.7,3380.4,3.84569724]
[1768408480921,3.97686527,3381.7,3380.2,2.95839842]
[1768408480922,0.377,3381.5,3380.2,2.95839842]
[1768408481121,0.377,3381.5,3380.4,2.95822481]
[1768408481515,0.377,3381.5,3380.3,2.95825801]
[1768408481849,2.95710596,3381.7,3379.8,0.02958754]
[1768408482065,0.377,3381.6,3380.4,5.91645958]
[1768408482296,0.93597399,3382.3,3380.5,0.59164596]
[1768408482457,0.09032472,3382.3,3380.5,1.59120995]
[1768408482642,0.377,3382.3,3380.5,5.91628456]
[1768408483321,0.09032472,3382.2,3380.5,5.91628456]
[1768408483722,0.377,3382.1,3380.5,5.91628456]
[1768408483953,0.09032472,3382.9,3380.5,5.91628456]
[1768408483954,0.377,3382.0,3380.6,0.02958054]
[1768408484254,0.377,3381.9,3380.7,0.89040074]
[1768408484630,6.29094824,3381.9,3380.7,0.89040074]
[1768408484820,0.09032472,3381.8,3380.3,2.95830006]
[1768408485154,2.95697412,3381.9,3379.9,2.95860951]
[1768408485331,0.377,3381.7,3380.6,2.95804881]
[1768408485719,0.377,3381.7,3380.7,2.95796679]
[1768408485955,0.377,3381.7,3380.3,2.95830039]
[1768408486167,0.377,3381.7,3380.4,0.29583004]
[1768408486370,0.377,3381.7,3380.6,2.9580026]
[1768408486676,1.48708403,3381.6,3379.6,2.95888272]
[1768408486840,0.09032472,3381.4,3379.5,0.99956399]
[1768408487042,0.09032472,3381.2,3378.9,0.99956399]
[1768408487271,0.09032472,3381.4,3379.9,2.95864135]
[1768408487466,1.01975931,3381.6,3380.4,2.95815458]
[1768408487662,1.01975931,3381.6,3379.7,2.95884115]
[1768408487663,0.46732472,3381.3,3379.7,2.95884115]
[1768408487841,0.46732472,3381.3,3379.9,2.95866112]
[1768408488344,0.46732472,3381.3,3380.0,2.95857435]
[1768408488564,2.95752987,3381.2,3380.1,0.5917329]
[1768408488762,2.95752987,3381.2,3379.0,0.54485054]
[1768408488763,0.09032472,3380.9,3379.0,0.54485054]
[1768408488968,0.09032472,3380.9,3378.6,2.9597705]
[1768408489276,0.09032472,3381.1,3379.3,2.95912486]
[1768408489572,5.91505974,3381.2,3380.5,0.001]
[1768408489742,2.95709258,3381.7,3380.5,0.001]
[1768408489936,0.09032472,3382.0,3380.5,0.001]
[1768408490137,0.09032472,3381.8,3380.8,1.0197593]
[1768408490369,0.09032472,3381.8,3380.5,0.001]
[1768408490370,0.377,3381.7,3380.5,0.001]
[1768408490568,0.09032472,3381.6,3380.5,0.001]
[1768408490949,0.377,3381.7,3380.5,0.001]
[1768408491860,2.95674285,3382.1,3380.5,0.001]
[1768408492174,0.09032472,3380.6,3379.7,8.8765275]
[1768408492370,0.09032472,3380.6,3378.5,6.06087362]
[1768408492371,0.377,3380.5,3379.3,2.95917396]
[1768408492576,2.9583173,3380.3,3378.5,2.95985963]
[1768408492752,0.377,3380.4,3378.6,0.40389301]
[1768408492940,0.377,3380.3,3378.7,0.09032472]
[1768408493642,0.377,3380.4,3378.7,0.09032472]
[1768408494138,0.377,3380.4,3378.8,0.0295963]
[1768408494350,0.377,3380.4,3378.6,0.43349106]
[1768408494689,5.9166346,3380.3,3378.7,0.63532441]
[1768408494840,5.9166346,3380.3,3377.8,0.0236296]
[1768408494841,0.09032472,3380.0,3378.2,2.96008683]
[1768408495043,6.53846593,3379.5,3378.3,0.09032472]
[1768408495241,8.8749519,3380.3,3378.5,0.09032472]
[1768408495242,5.9166346,3380.3,3378.5,0.09032472]
[1768408495551,5.9166346,3380.3,3378.3,0.09032472]
[1768408495552,0.377,3380.2,3378.6,0.09032472]
[1768408495761,0.4250414,3380.1,3377.9,0.09032472]
[1768408495952,0.4250414,3380.1,3378.0,0.09032472]
[1768408496152,0.4250414,3380.1,3377.8,0.09032472]
[1768408496354,0.4250414,3380.1,3377.5,0.99513917]
[1768408496563,0.377,3380.0,3378.4,0.09032472]
[1768408496868,5.91733482,3379.9,3378.4,0.40439809]
[1768408497072,5.91733482,3379.9,3378.4,0.31407337]
[1768408497317,3.98118973,3380.9,3378.4,5.91991878]
[1768408497476,6.42075958,3380.8,3378.9,0.09032472]
[1768408497638,9.37863937,3380.8,3378.7,0.09032472]
[1768408498043,9.37863937,3380.8,3378.5,0.09032472]
[1768408498270,12.33651916,3380.8,3378.6,0.60102435]
[1768408498585,1.0197593,3380.7,3378.6,0.60102435]
[1768408498751,8.87416434,3380.6,3378.5,2.95985532]
[1768408498952,8.87416434,3380.6,3378.0,0.98874578]
[1768408499279,8.87416434,3380.6,3378.5,2.95983087]
[1768408499449,8.87416434,3380.6,3378.0,0.98874578]
[1768408499450,0.128,3380.5,3378.0,0.98874578]
[1768408499645,0.377,3380.4,3378.4,2.95991403]
[1768408499847,0.377,3380.4,3378.0,0.98874578]
[1768408500066,0.377,3380.4,3377.9,2.96034081]
[1768408500387,0.377,3380.4,3377.5,0.09671811]
[1768408500388,1.24167263,3380.1,3377.5,0.00639339]
[1768408500560,1.02334791,3379.6,3377.5,0.00639339]
[1768408500888,6.53846593,3379.9,3377.5,0.00639339]
[1768408500889,9.90040071,3379.5,3377.5,2.96715457]
[1768408501061,0.377,3379.4,3377.6,0.29671546]
[1768408501263,0.377,3379.4,3377.6,0.32632228]
[1768408501586,0.377,3379.4,3377.6,0.29671546]
[1768408502151,1.0197593,3379.4,3377.6,0.29671546]
[1768408502358,1.3967593,3379.4,3377.9,0.001]
[1768408502883,0.377,3379.3,3377.9,0.001]
[1768408503185,0.377,3379.3,3377.9,1.02685694]
[1768408503578,0.377,3379.3,3377.9,0.001]
[1768408503883,1.11367263,3379.3,3377.5,0.00639339]
[1768408504181,0.377,3379.2,3377.5,0.00639339]
[1768408504556,0.09032472,3379.1,3377.5,0.00639339]
[1768408504778,8.87836638,3379.0,3377.5,0.00639339]
[1768408505288,6.62879065,3378.5,3376.4,0.001]
[1768408505497,1.15134791,3378.6,3376.6,2.96147778]
[1768408505698,1.15134791,3378.6,3376.4,0.001]
[1768408505856,0.377,3378.5,3376.4,0.001]
[1768408506056,0.52983479,3378.4,3376.4,0.001]
[1768408506587,0.09032472,3378.3,3376.4,2.96266783]
[1768408506768,0.09032472,3378.1,3376.4,0.001]
[1768408507587,0.377,3378.0,3376.4,0.001]
[1768408507763,5.92031258,3378.2,3376.4,0.001]
[1768408507955,0.377,3377.9,3376.4,0.001]
[1768408508156,0.09032472,3377.8,3376.4,0.001]
[1768408508387,0.09032472,3377.3,3376.4,0.001]
[1768408508593,0.09032472,3377.6,3376.4,0.001]
[1768408508794,0.09032472,3377.6,3375.2,2.96278739]
[1768408508795,0.377,3377.2,3375.2,2.96278739]
[1768408508975,0.09032472,3377.1,3375.2,2.96278739]
[1768408509176,0.09032472,3377.1,3375.1,0.001]
[1768408509522,0.09032472,3377.1,3375.1,2.96387151]
[1768408509523,0.377,3377.0,3375.1,2.96387151]
[1768408509685,0.377,3376.9,3375.2,0.02962787]
[1768408509872,0.377,3376.8,3375.3,0.59563746]
[1768408510307,0.377,3376.8,3375.1,2.96386248]
[1768408510487,0.377,3376.8,3375.1,2.96384375]
[1768408510682,5.9229425,3376.7,3375.1,0.001]
[1768408510886,8.88441375,3376.7,3375.1,0.001]
[1768408511406,0.09032472,3376.6,3375.1,0.001]
[1768408512108,0.377,3376.5,3375.1,0.001]
[1768408512809,5.92346878,3376.4,3375.1,0.001]
[1768408512996,0.377,3376.3,3375.1,0.001]
[1768408513786,6.98223272,3376.2,3374.9,0.14959808]
[1768408514107,7.07255744,3375.6,3373.6,2.964186]
[1768408514305,0.377,3375.5,3373.9,2.96392897]
[1768408514493,1.11367263,3375.8,3373.9,2.96392897]
[1768408514697,5.9248726,3375.6,3373.3,0.98874578]
[1768408514895,5.9248726,3375.6,3373.4,5.92873658]
[1768408515097,5.9248726,3375.6,3373.5,0.69184824]
[1768408515596,9.91065681,3375.6,3373.5,0.69184824]
[1768408515798,0.09032472,3375.1,3373.2,0.001]
[1768408515999,0.09032472,3374.9,3373.2,0.001]
[1768408516204,0.09032472,3374.7,3373.2,0.001]
[1768408516515,0.09032472,3375.1,3373.2,0.001]
[1768408516516,0.09032472,3375.0,3373.2,0.001]
[1768408516815,0.09032472,3374.8,3373.2,0.001]
[1768408516993,0.09032472,3374.8,3372.0,0.00168984]
[1768408516994,0.09032472,3374.0,3372.0,0.00168984]
[1768408517194,0.09032472,3374.2,3372.0,0.00168984]
[1768408517195,1.02334791,3374.2,3372.0,0.00168984]
[1768408517516,11.852203,3374.9,3372.1,8.8965333]
[1768408517517,0.377,3374.1,3372.1,8.8965333]
[1768408517724,0.09032472,3374.7,3372.2,1.2852654]
[1768408517725,0.46732472,3374.0,3372.2,1.2852654]
[1768408518018,0.09032472,3373.5,3372.0,0.00168984]
[1768408518181,0.377,3373.4,3372.1,2.9655111]
[1768408518388,0.377,3373.3,3372.0,0.00168984]
[1768408518829,0.377,3373.2,3371.4,5.93225366]
[1768408519013,5.9283851,3373.6,3371.4,5.93225366]
[1768408519317,0.377,3373.1,3371.5,0.69196893]
[1768408519885,0.09032472,3373.5,3371.3,5.93242922]
[1768408520085,5.9283851,3373.6,3371.3,5.93242922]
[1768408520285,0.46732472,3373.5,3371.3,5.93242922]
[1768408520715,0.09032472,3373.2,3371.3,5.93242922]
[1768408520890,5.92926388,3373.1,3371.2,2.9663028]
[1768408521086,6.0195886,3373.1,3371.3,0.32865538]
[1768408521321,0.09032472,3372.7,3371.3,0.29899324]
[1768408521523,0.09032472,3372.3,3371.1,0.0236296]
[1768408521819,0.377,3372.2,3371.1,2.990009]
[1768408522189,1.12930147,3372.7,3371.1,2.99001787]
[1768408522396,0.377,3372.6,3371.1,2.99001787]
[1768408522586,0.46732472,3372.5,3371.2,0.32866481]
[1768408522789,0.46732472,3372.5,3371.1,2.99001787]
[1768408522790,0.09032472,3372.7,3371.1,5.95638543]
[1768408523019,0.46732472,3372.4,3371.1,2.98999464]
[1768408523503,0.09032472,3372.2,3371.1,0.0236296]
[1768408523710,0.09032472,3372.0,3371.1,0.0236296]
[1768408524103,0.377,3372.4,3371.1,7.10542612]
[1768408524297,0.09032472,3372.5,3371.2,0.71054261]
[1768408524604,1.11008402,3371.9,3371.1,0.0236296]
[1768408524808,0.09032472,3371.8,3371.1,0.0236296]
[1768408525016,3.05610204,3371.8,3371.1,0.0236296]
[1768408525214,0.377,3371.7,3371.1,0.0236296]
[1768408525397,0.09032472,3371.6,3371.1,0.0236296]
[1768408525934,0.377,3371.5,3371.1,0.0236296]
[1768408526132,6.78943957,3373.3,3371.1,0.0236296]
[1768408526335,2.96489563,3372.8,3371.2,0.02966302]
[1768408526498,0.09032472,3372.7,3371.3,0.59860742]
[1768408526699,0.377,3372.8,3371.3,0.59860742]
[1768408526900,0.377,3372.8,3371.4,8.89838049]
[1768408527133,2.96430011,3373.5,3371.4,13.01352994]
[1768408527308,0.09032472,3373.9,3371.5,1.14902262]
[1768408527512,0.09032472,3373.2,3371.6,1.36121374]
[1768408527710,0.377,3373.1,3371.6,1.36121374]
[1768408528402,0.09032472,3373.0,3371.6,1.36121374]
[1768408528713,0.09032472,3373.5,3371.4,6.31225366]
[1768408528714,0.09032472,3374.8,3371.9,1.14902262]
[1768408529033,0.09032472,3375.1,3372.2,1.14902262]
[1768408529231,0.09032472,3374.6,3372.3,1.14902262]
[1768408529431,0.09032472,3374.8,3372.3,1.14902262]
[1768408529633,0.377,3374.7,3372.4,1.30192488]
[1768408529830,0.09032472,3374.5,3372.4,1.68192488]
[1768408530023,0.09032472,3374.3,3372.4,1.30192488]
[1768408530327,0.09032472,3374.1,3372.4,0.15290226]
[1768408530523,0.09032472,3374.1,3372.3,0.38]
[1768408530727,0.09032472,3374.2,3372.0,7.08022072]
[1768408530914,6.01835838,3373.8,3372.0,7.08022072]
[1768408531114,0.09032472,3373.6,3372.0,5.9311981]
[1768408531533,0.09032472,3373.7,3372.0,5.9311981]
[1768408531723,3.34101683,3373.8,3372.1,0.88968235]
[1768408531925,0.377,3373.8,3372.1,0.88968235]
[1768408532432,0.377,3373.8,3372.2,1.14902262]
[1768408532634,2.96313855,3374.8,3372.2,1.14902262]
[1768408532835,2.96340198,3374.5,3372.3,13.01036354]
[1768408533034,0.002,3373.6,3372.4,2.53902721]
[1768408533241,0.09032472,3374.8,3372.5,1.14902262]
[1768408533443,0.09032472,3375.1,3372.4,1.39000459]
[1768408533444,0.09032472,3374.0,3372.4,1.39000459]
[1768408533743,1.01975929,3373.7,3373.0,0.09032472]
[1768408533911,1.39675929,3373.7,3372.0,0.09032472]
[1768408534435,1.39675929,3373.7,3372.0,0.40495577]
[1768408535011,8.89257765,3373.6,3372.0,0.09032472]
[1768408535208,8.89257765,3373.6,3372.4,0.09032472]
[1768408535209,5.9283851,3373.6,3372.4,0.09032472]
[1768408535428,5.9283851,3373.6,3372.8,0.09032472]
[1768408535616,6.3053851,3373.6,3372.8,0.09032472]
[1768408535824,6.3053851,3373.6,3372.6,0.09032472]
[1768408536031,7.33429674,3373.6,3372.6,0.09032472]
[1768408536707,0.377,3374.0,3373.0,0.09032472]
[1768408536908,1.12930147,3374.9,3373.0,0.09032472]
[1768408537103,2.96329357,3374.7,3373.0,0.09032472]
[1768408537308,6.3032771,3374.8,3373.2,0.09032472]
[1768408537506,1.87275933,3374.7,3373.0,2.96469584]
[1768408537744,0.74345786,3374.7,3373.0,2.96469584]
[1768408537938,0.74345786,3374.7,3373.0,5.92941567]
[1768408538146,0.128,3374.5,3371.1,0.0236296]
[1768408538326,1.12930147,3373.4,3371.3,2.96620468]
[1768408538517,1.12930147,3373.2,3371.1,0.0236296]
[1768408538721,1.12930147,3373.2,3371.1,2.96636318]
[1768408538910,1.12930147,3373.2,3370.8,0.09032472]
[1768408538911,8.89389582,3373.1,3370.8,0.09032472]
[1768408539113,1.4602755,3373.0,3370.9,2.96654583]
[1768408539441,1.12930147,3372.9,3370.6,0.09032472]
[1768408539630,1.12930147,3372.9,3370.6,3.05714434]
[1768408540148,1.12930147,3372.9,3370.6,0.09032472]
[1768408540328,1.87275933,3372.8,3370.6,0.09032472]
[1768408540533,1.12930147,3372.7,3370.6,2.96681252]
[1768408540748,1.12930147,3372.5,3370.2,2.96717776]
[1768408540920,14.8262365,3372.4,3369.7,3.05788541]
[1768408541264,1.12930147,3372.2,3369.5,1.23934734]
[1768408541553,1.12930147,3371.1,3369.0,2.96822036]
[1768408541723,1.12930147,3371.1,3369.0,0.02968239]
[1768408541908,0.09032472,3371.6,3368.5,1.14902262]
[1768408541909,1.12930147,3371.0,3368.5,1.14902262]
[1768408542110,0.09032472,3371.6,3369.1,0.09032472]
[1768408542111,0.377,3370.9,3369.1,0.09032472]
[1768408542313,0.377,3370.9,3369.3,0.09032472]
[1768408542533,1.25730147,3371.6,3369.6,2.96765236]
[1768408542734,1.25730147,3371.6,3369.7,0.29676524]
[1768408542735,1.12930147,3371.3,3369.7,0.29676524]
[1768408542934,1.12930147,3371.1,3368.8,2.96841605]
[1768408543332,1.12930147,3371.1,3368.7,3.05881714]
[1768408543733,1.12930147,3370.9,3368.7,3.05881714]
[1768408544048,1.12930147,3370.6,3368.7,2.96849242]
[1768408544342,0.377,3370.8,3368.6,0.09032472]
[1768408544643,1.12930147,3370.6,3368.4,2.96873675]
[1768408544845,1.12930147,3370.6,3368.3,0.19303329]
[1768408544846,1.12930147,3370.2,3368.5,0.316177]
[1768408545048,8.901813,3370.1,3368.3,6.13073955]
[1768408545342,0.377,3370.0,3368.3,6.13073955]
[1768408545545,0.377,3370.0,3368.3,3.16188286]
[1768408545846,1.12930147,3369.9,3368.3,0.19303329]
[1768408546046,2.47587249,3369.8,3368.3,0.19303329]
[1768408546455,0.377,3369.7,3368.3,0.19303329]
[1768408546946,5.9354226,3369.6,3368.3,0.19303329]
[1768408547447,0.377,3369.5,3368.3,3.16188081]
[1768408547650,1.01975929,3369.6,3368.3,6.1307375]
[1768408547852,1.01975929,3369.6,3368.4,0.61307375]
[1768408548049,1.01975929,3369.6,3368.5,0.0296868]
[1768408548227,1.01975929,3369.6,3368.4,0.61307375]
[1768408548427,1.01975929,3369.6,3368.6,0.001]
[1768408549954,2.96714678,3370.3,3368.6,0.03068592]
[1768408550156,5.93430226,3370.3,3368.7,0.95498009]
[1768408551152,5.93401376,3370.4,3368.8,2.96841605]
[1768408551454,0.377,3371.0,3368.9,1.6904288]
[1768408551657,1.02694803,3370.9,3369.0,0.8582241]
[1768408551952,0.09032472,3370.7,3369.0,0.8582241]
[1768408552334,1.01975929,3370.4,3369.0,0.8582241]
[1768408552535,1.01975929,3370.4,3368.9,0.379]
[1768408553040,2.96709491,3370.3,3369.0,5.93647966]
[1768408553260,2.96709491,3370.3,3369.0,2.96823983]
[1768408553741,5.93418982,3370.3,3369.0,2.96823983]
[1768408554742,0.09032472,3370.0,3369.0,2.96823983]
[1768408555152,0.09032472,3370.2,3368.8,5.93682322]
[1768408555460,0.09032472,3370.5,3368.8,6.56850554]
[1768408555461,5.93401376,3370.4,3368.8,6.56850554]
[1768408555641,0.09032472,3370.2,3368.8,6.56850554]
[1768408556360,6.95377305,3370.4,3368.8,6.56850554]
[1768408556553,1.01975929,3370.4,3368.9,1.72011207]
[1768408556725,1.01975929,3370.4,3368.9,1.6904288]
[1768408556927,2.96634209,3371.2,3368.8,9.53692159]
[1768408556928,0.09032472,3371.4,3369.2,1.6904288]
[1768408557123,0.09032472,3370.9,3369.3,2.96797554]
[1768408557323,0.09032472,3371.4,3369.4,2.0704288]
[1768408557556,0.09032472,3371.2,3369.4,2.0704288]
[1768408558140,0.09032472,3371.4,3369.4,1.6904288]
[1768408558335,0.09032472,3371.4,3369.6,1.6904288]
[1768408558743,2.96603885,3371.5,3369.6,1.6904288]
[1768408559130,2.96596329,3371.6,3369.6,1.6904288]
[1768408559333,0.09032472,3371.5,3369.8,1.6904288]
[1768408559532,2.96586291,3371.7,3369.8,1.6904288]
[1768408559858,0.09032472,3371.2,3370.0,1.6904288]
[1768408560057,0.09032472,3371.0,3370.1,0.38]
[1768408560230,0.09032472,3371.2,3370.1,0.38]
[1768408560430,0.09032472,3370.9,3369.6,2.96768679]
[1768408560651,0.09032472,3371.1,3369.7,0.38]
[1768408560871,8.89758873,3371.7,3369.8,2.32196861]
[1768408560872,2.96586291,3371.7,3369.8,2.32196861]
[1768408561180,0.09032472,3372.2,3370.0,10.59250595]
[1768408561379,0.09032472,3371.9,3370.1,1.6904288]
[1768408561587,0.06281668,3371.7,3370.2,0.38]
[1768408561956,3.05577305,3372.2,3370.3,2.0704288]
[1768408562155,2.96544833,3372.2,3370.4,1.89747168]
[1768408562464,2.96532325,3372.4,3370.4,1.89747168]
[1768408562779,2.96480773,3372.9,3370.6,1.6904288]
[1768408562966,6.01994018,3372.9,3370.6,1.6904288]
[1768408563276,2.96542316,3372.2,3370.8,5.9333096]
[1768408563474,5.93084632,3372.2,3370.9,1.14237384]
[1768408563646,0.09032472,3372.1,3370.7,5.93346735]
[1768408563849,3.05569686,3372.3,3370.7,5.93346735]
[1768408564058,0.09032472,3371.9,3370.6,4.65718824]
[1768408564256,0.09032472,3372.1,3370.7,3.34674281]
[1768408564457,0.09032472,3372.1,3370.8,0.33467428]
[1768408564686,0.002,3371.4,3370.8,0.33467428]
[1768408564853,0.002,3371.4,3370.7,0.38]
[1768408565055,0.002,3371.4,3370.4,0.20704288]
[1768408565275,5.92979126,3372.8,3370.9,7.62356238]
[1768408565478,5.92979126,3372.8,3370.9,10.59012917]
[1768408565479,2.96193563,3372.8,3370.9,10.59012917]
[1768408565687,0.29619356,3372.7,3371.0,1.05901292]
[1768408565888,2.96193563,3372.8,3371.1,2.0704288]
[1768408566063,5.92683126,3372.8,3371.1,1.6904288]
[1768408566266,5.92683126,3372.8,3371.2,0.38]
[1768408566781,0.09032472,3372.7,3371.1,1.6904288]
[1768408566958,0.09032472,3372.7,3371.2,0.38]
[1768408567293,2.96507145,3372.6,3371.4,2.96612683]
[1768408567485,2.96471983,3373.0,3371.4,5.93225366]
[1768408567689,0.09032472,3373.6,3371.4,5.93225366]
[1768408567690,0.002,3375.0,3372.6,0.66502498]
[1768408567891,0.002,3375.0,3373.3,1.03077382]
[1768408568185,0.09032472,3374.7,3374.0,0.15442469]
[1768408568387,0.09032472,3374.7,3371.9,0.63712463]
[1768408568388,0.09032472,3374.2,3371.9,0.63712463]
[1768408568685,0.09032472,3373.8,3372.0,0.38]
[1768408568897,0.09032472,3374.2,3372.0,0.38]
[1768408569103,0.09032472,3374.3,3372.1,0.17903745]
[1768408569287,0.09032472,3373.5,3372.2,2.96542316]
[1768408569591,0.08795442,3373.5,3372.3,0.38]
[1768408569981,0.09032472,3373.3,3372.3,0.38]
[1768408570195,0.08795442,3373.5,3372.3,0.38]
[1768408570501,1.8101387,3373.4,3372.3,0.38]
[1768408570658,6.01824727,3373.9,3372.3,0.38]
[1768408570659,0.09032472,3373.8,3372.3,0.38]
[1768408570852,1.71969816,3373.6,3372.3,0.38]
[1768408571303,1.62937344,3373.6,3372.4,5.9304946]
[1768408571659,1.62937344,3373.6,3372.4,2.9652473]
[1768408571872,1.62937344,3373.6,3372.4,5.9304946]
[1768408572153,0.09032472,3373.9,3372.5,0.63104946]
[1768408572357,0.09032472,3373.7,3372.5,0.63104946]
[1768408572557,0.09032472,3373.7,3372.4,5.9304946]
[1768408572755,1.62937344,3374.0,3372.4,2.9652473]
[1768408573060,0.09032472,3373.7,3372.4,2.9652473]
[1768408573266,1.62937344,3373.9,3372.4,5.9304946]
[1768408573460,1.71969816,3373.8,3372.4,5.9304946]
[1768408573662,1.71969816,3373.8,3372.5,0.63104946]
[1768408573990,1.62937344,3374.4,3372.5,0.63104946]
[1768408574198,4.59288658,3374.4,3372.5,0.63104946]
[1768408574371,1.71969816,3374.1,3372.5,0.63104946]
[1768408574569,0.09032472,3373.7,3372.6,0.379]
[1768408574890,1.71969816,3373.5,3372.6,0.379]
[1768408575461,0.09032472,3373.3,3372.6,0.379]
[1768408575860,1.71969816,3373.3,3372.6,0.379]
[1768408576061,1.71969816,3373.3,3370.9,1.44669343]
[1768408576062,0.09032472,3372.3,3370.0,0.59949334]
[1768408576266,1.71969816,3372.0,3370.8,2.96662548]
[1768408576507,1.62937344,3372.0,3370.9,0.379]
[1768408576801,1.62937344,3372.0,3371.0,2.96645249]
[1768408577102,1.62937344,3372.8,3371.3,2.96621481]
[1768408577486,1.62937344,3372.8,3371.1,0.33454525]
[1768408577487,7.55934052,3372.7,3371.2,2.9663028]
[1768408577668,4.59435698,3372.7,3371.2,5.9326056]
[1768408577871,1.62937344,3373.4,3371.2,8.8989084]
[1768408578070,2.96448096,3373.3,3371.3,0.02966214]
[1768408578271,1.62937344,3373.2,3371.2,8.8989084]
[1768408578505,1.62937344,3373.2,3371.2,11.8652112]
[1768408578680,1.62937344,3373.7,3371.3,0.09032472]
[1768408578884,1.71969816,3373.7,3371.2,8.8989084]
[1768408579118,1.62937344,3373.5,3371.3,0.92334537]
[1768408579408,1.62937344,3373.5,3371.4,11.86450732]
[1768408579622,1.62937344,3373.5,3371.5,0.379]
[1768408579813,4.59314904,3374.1,3371.6,0.09032472]
[1768408579971,2.08868834,3374.0,3371.7,1.52999589]
[1768408580303,1.69253331,3374.7,3372.0,0.09032472]
[1768408580602,1.69253331,3374.5,3372.0,0.09032472]
[1768408580805,1.69253331,3374.5,3372.2,0.09032472]
[1768408581403,1.69253331,3374.5,3372.7,8.89495062]
[1768408581600,1.69253331,3374.9,3372.8,0.40864895]
[1768408581799,1.69253331,3374.8,3372.9,1.23589078]
[1768408582305,5.92804186,3375.0,3372.9,1.23589078]
[1768408582306,0.002,3375.0,3372.9,1.23589078]
[1768408582603,1.69253331,3374.9,3372.9,1.23589078]
[1768408582803,1.78285803,3374.9,3372.9,1.23589078]
[1768408583110,1.69253331,3374.6,3372.9,1.23589078]
[1768408583280,1.69253331,3374.4,3373.0,0.75448579]
[1768408583476,2.96357763,3374.3,3373.0,3.71918617]
[1768408583818,2.96357763,3374.3,3373.0,2.96470038]
[1768408584111,2.96357763,3374.3,3373.0,5.92942021]
[1768408584289,4.65603248,3374.4,3373.0,5.92942021]
[1768408584493,1.78285803,3374.2,3373.0,0.02964719]
[1768408584821,1.78285803,3372.9,3372.2,0.379]
[1768408584971,1.78285803,3372.6,3371.1,10.37]
[1768408585175,1.69253331,3372.6,3371.5,2.96603747]
[1768408585373,1.69253331,3372.6,3371.7,5.93169723]
[1768408585604,1.69253331,3373.2,3371.8,1.00182746]
[1768408585902,1.69253331,3373.2,3371.8,0.97216972]
[1768408586110,1.69253331,3373.2,3371.9,0.02965687]
[1768408586312,7.62061685,3373.8,3371.8,0.97216972]
[1768408586521,1.69253331,3373.8,3371.8,0.97216972]
[1768408586679,1.69253331,3373.8,3371.9,1.28355928]
[1768408587075,0.09032472,3374.9,3372.0,0.128]
[1768408587076,1.69253331,3374.4,3372.0,0.128]
[1768408587312,1.69253331,3374.4,3372.1,1.42242926]
[1768408587476,4.65604546,3374.4,3372.1,11.8620444]
[1768408587677,4.65605181,3374.4,3372.1,14.8275555]
[1768408587893,7.61957031,3374.4,3372.2,1.63294395]
[1768408588093,1.69253331,3374.4,3372.2,1.63294395]
[1768408588483,1.69253331,3374.4,3372.3,1.41278398]